[Event "35th European Club Cup 2019"]
[Site "Ulcinj"]
[Date "2019.11.14"]
[Round "5.6"]
[White "Ahmadzada, Ahmad"]
[Black "Brunello, Sabino"]
[Result "1-0"]
[ECO "C85"]
[WhiteElo "2406"]
[BlackElo "2549"]
[Annotator "ChessBase"]
[PlyCount "77"]
[EventDate "2019.11.10"]
[EventType "team-tourn"]
[EventCountry "MNE"]
[SourceTitle "playchess.com"]
[Source "ChessBase"]
[SourceQuality "1"]
[WhiteTeam "Vugar Gashimov"]
[BlackTeam "Padova"]
[TimeControl "40/5400+30:1800+30"]

1. e4 {[%emt 0:00:00]} e5 {[%emt 0:00:00]} 2. Nf3 {[%emt 0:00:00]} Nc6 {[%emt 0:00:00]} 3. Bb5 {[%emt 0:00:00]} a6 {[%emt 0:00:09]} 4. Ba4 {[%emt 0:00:00]} Nf6 {[%emt 0:00:19]} 5. O-O {[%emt 0:00:01]} Be7 {[%emt 0:00:13]} 6. Bxc6 {[%emt 0:00:09]} dxc6 {[%emt 0:00:50]} 7. d3 {[%emt 0:00:08]} Nd7 {[%emt 0:01:54]} 8. b3 {[%emt 0:00:07]} c5 {[%emt 0:11:21]} 9. Bb2 {[%emt 0:00:06]} Bd6 {[%emt 0:02:48]} 10. Nbd2 {[%emt 0:00:08]} O-O {[%emt 0:16:30]} 11. Nc4 {[%emt 0:01:17]} Re8 {[%emt 0:00:34]} 12. Nxd6 {[%emt 0:04:05]} cxd6 {[%emt 0:00:02]} 13. Nd2 {[%emt 0:00:17]} Nf8 {[%emt 0:09:44]} 14. f4 {[%emt 0:03:06]} exf4 {[%emt 0:00:14]} 15. Rxf4 {[%emt 0:00:07]} Ng6 {[%emt 0:00:04]} 16. Rf2 {[%emt 0:01:57]} b5 {[%emt 0:03:26]} 17. Qh5 {[%emt 0:06:22]} Be6 {[%emt 0:06:01]} 18. Raf1 {[%emt 0:06:51]} h6 {[%emt 0:07:36]} 19. Nf3 {[%emt 0:08:41]} a5 {[%emt 0:14:46]} 20. d4 {[%emt 0:09:06]} Qd7 {[%emt 0:16:38]} 21. dxc5 {[%emt 0:03:17]} Bg4 {[%emt 0:01:37]} 22. c6 {[%emt 0:03:02]} Bxh5 {[%emt 0:02:11]} 23. cxd7 {[%emt 0:00:06]} Rxe4 {[%emt 0:00:47]} 24. Nd4 {[%emt 0:00:48]} Nf8 {[%emt 0:01:44]} 25. Nxb5 {[%emt 0:01:34]} Nxd7 {[%emt 0:00:24]} 26. Nxd6 {[%emt 0:00:28]} Re6 {[%emt 0:00:23]} 27. Nxf7 {[%emt 0:03:12]} Rf8 {[%emt 0:01:51]} 28. Rd2 {[%emt 0:00:05]} Nc5 {[%emt 0:01:19]} 29. Rd5 {[%emt 0:03:59]} Bxf7 {[%emt 0:00:32]} 30. Rxc5 {[%emt 0:00:06]} Bg6 {[%emt 0:00:30]} 31. Rxf8+ {[%emt 0:01:18]} Kxf8 {[%emt 0:00:01]} 32. Rc7 {[%emt 0:00:37]} Re2 {[%emt 0:00:47]} 33. Kf1 {[%emt 0:01:12]} Rxc2 {[%emt 0:00:25]} 34. Bxg7+ {[%emt 0:00:07]} Ke8 {[%emt 0:00:07]} 35. Rxc2 {[%emt 0:00:36]} Bxc2 {[%emt 0:00:04]} 36. Bxh6 {[%emt 0:00:06]} Bb1 {[%emt 0:00:03]} 37. a3 {[%emt 0:00:12]} Ba2 {[%emt 0:00:03]} 38. b4 {[%emt 0:00:06]} axb4 {[%emt 0:00:04]} 39. axb4 {[%emt 0:00:05]} 1-0

[Event "35th European Club Cup 2019"]
[Site "Ulcinj"]
[Date "2019.11.14"]
[Round "5.6"]
[White "Bratkovic, Sham"]
[Black "Sychev, Klementy"]
[Result "0-1"]
[ECO "A40"]
[WhiteElo "2232"]
[BlackElo "2578"]
[Annotator "ChessBase"]
[PlyCount "70"]
[EventDate "2019.11.10"]
[EventType "team-tourn"]
[EventCountry "MNE"]
[SourceTitle "playchess.com"]
[Source "ChessBase"]
[SourceQuality "1"]
[WhiteTeam "Maribor"]
[BlackTeam "Law & Order"]
[TimeControl "40/5400+30:1800+30"]

1. d4 {[%emt 0:00:50]} e6 {[%emt 0:00:55]} 2. c4 {[%emt 0:01:44]} b6 {[%emt 0:01:09]} 3. Nc3 {[%emt 0:02:31]} Bb7 {[%emt 0:00:46]} 4. e4 {[%emt 0:01:51]} Bb4 {[%emt 0:00:14]} 5. Bd3 {[%emt 0:03:39]} f5 {[%emt 0:02:16]} 6. Qe2 {[%emt 0:07:12]} Nf6 {[%emt 0:01:58]} 7. Bg5 {[%emt 0:07:19]} fxe4 {[%emt 0:01:48]} 8. Bxe4 {[%emt 0:07:43]} Bxe4 {[%emt 0:00:47]} 9. Bxf6 {[%emt 0:00:11]} Qxf6 {[%emt 0:00:05]} 10. Qxe4 {[%emt 0:00:05]} Nc6 {[%emt 0:00:54]} 11. Nf3 {[%emt 0:02:07]} Bxc3+ {[%emt 0:00:19]} 12. bxc3 {[%emt 0:00:07]} O-O {[%emt 0:00:04]} 13. O-O {[%emt 0:01:37]} Qf5 {[%emt 0:00:04]} 14. Qe2 {[%emt 0:04:59]} Rae8 {[%emt 0:11:38]} 15. Rab1 {[%emt 0:05:22]} d6 {[%emt 0:16:52]} 16. Rb5 {[%emt 0:16:45]} Qf4 {[%emt 0:00:12]} 17. Rh5 {[%emt 0:10:53]} Re7 {[%emt 0:15:55]} 18. Rh4 {[%emt 0:05:49]} Qf5 {[%emt 0:00:07]} 19. Re4 {[%emt 0:00:27]} Rfe8 {[%emt 0:00:42]} 20. Re1 {[%emt 0:02:59]} e5 {[%emt 0:15:29]} 21. Qd1 {[%emt 0:02:53]} exd4 {[%emt 0:08:12]} 22. Rxe7 {[%emt 0:00:39]} Rxe7 {[%emt 0:00:18]} 23. Rxe7 {[%emt 0:00:39]} Nxe7 {[%emt 0:00:06]} 24. cxd4 {[%emt 0:00:20]} d5 {[%emt 0:03:16]} 25. Qe1 {[%emt 0:04:18]} Kf8 {[%emt 0:02:50]} 26. cxd5 {[%emt 0:00:56]} Nxd5 {[%emt 0:00:05]} 27. h3 {[%emt 0:00:48]} h6 {[%emt 0:05:13]} 28. Qc1 {[%emt 0:02:41]} Kg8 {[%emt 0:02:03]} 29. Qc6 {[%emt 0:01:51]} Kh7 {[%emt 0:00:50]} 30. Ne5 {[%emt 0:01:44]} Nf4 {[%emt 0:04:10]} 31. Qf3 {[%emt 0:01:39]} c5 {[%emt 0:00:55]} 32. Nc6 {[%emt 0:01:33]} c4 {[%emt 0:00:44]} 33. Ne7 {[%emt 0:00:33]} Nxh3+ {[%emt 0:00:52]} 34. Kf1 {[%emt 0:01:18]} Qb1+ {[%emt 0:00:09]} 35. Ke2 {[%emt 0:00:02]} Ng1+ {[%emt 0:00:07]} 0-1

[Event "35th European Club Cup 2019"]
[Site "Ulcinj"]
[Date "2019.11.14"]
[Round "5.6"]
[White "Duijn, Rob"]
[Black "Piceu, Tom"]
[Result "0-1"]
[ECO "D02"]
[WhiteElo "2220"]
[BlackElo "2354"]
[Annotator "NA"]
[PlyCount "33"]
[EventDate "2019.11.10"]
[EventType "team-tourn"]
[EventCountry "MNE"]
[SourceTitle "playchess.com"]
[Source "ChessBase"]
[SourceQuality "1"]
[WhiteTeam "Kennemer Combinatie"]
[BlackTeam "HWP Sas van Gent"]
[TimeControl "40/5400+30:1800+30"]

1. d4 {[%emt 0:00:00]} d5 {[%emt 0:00:00]} 2. Nf3 {[%emt 0:00:04]} e6 {[%emt 0:00:09]} 3. Bg5 {[%emt 0:00:30]} f6 {[%emt 0:00:30]} 4. Bf4 {[%emt 0:00:30]} Bd6 {[%emt 0:00:30]} 5. Bg3 {[%emt 0:00:30]} Ne7 {[%emt 0:00:30]} 6. Nbd2 {[%emt 0:00:30]} c5 {[%emt 0:00:30]} 7. c3 {[%emt 0:00:30]} Nbc6 {[%emt 0:00:30]} 8. Bxd6 {[%emt 0:00:30]} Qxd6 {[%emt 0:00:30]} 9. dxc5 {[%emt 0:00:30]} Qxc5 {[%emt 0:00:30]} 10. e4 {[%emt 0:00:30]} O-O {[%emt 0:00:30]} 11. Nb3 {[%emt 0:00:30]} Qb6 {[%emt 0:00:30]} 12. exd5 {[%emt 0:00:30]} Nxd5 {[%emt 0:00:30]} 13. Bc4 {[%emt 0:00:30]} Nf4 {[%emt 0:00:30]} 14. O-O {[%emt 0:00:30]} Kh8 {[%emt 0:00:30]} 15. Qd6 {[%emt 0:00:30]} Ng6 {[%emt 0:00:30]} 16. Rad1 {[%emt 0:00:30]} e5 {[%emt 0:00:30]} 17. Qc5 {[%emt 0:00:30]} 0-1

[Event "35th European Club Cup 2019"]
[Site "Ulcinj"]
[Date "2019.11.14"]
[Round "5.7"]
[White "Pijpers, Arthur"]
[Black "Saraci, Nderim"]
[Result "1/2-1/2"]
[ECO "C70"]
[WhiteElo "2473"]
[BlackElo "2403"]
[Annotator "RC"]
[PlyCount "118"]
[EventDate "2019.11.10"]
[EventType "team-tourn"]
[EventCountry "MNE"]
[SourceTitle "playchess.com"]
[Source "ChessBase"]
[SourceQuality "1"]
[WhiteTeam "LSG IntelliMagic"]
[BlackTeam "Drejtesia"]
[TimeControl "40/5400+30:1800+30"]

1. e4 {[%emt 0:00:00]} e5 {[%emt 0:00:00]} 2. Nf3 {[%emt 0:00:00]} Nc6 {[%emt 0:00:00]} 3. Bb5 {[%emt 0:00:00]} a6 {[%emt 0:00:03]} 4. Ba4 {[%emt 0:00:00]} g6 {[%emt 0:00:11]} 5. d4 {[%emt 0:00:14]} exd4 {[%emt 0:01:05]} 6. Nxd4 {[%emt 0:00:08]} Bg7 {[%emt 0:11:18]} 7. Nxc6 {[%emt 0:00:17]} dxc6 {[%emt 0:01:05]} 8. Qxd8+ Kxd8 9. O-O {[%emt 0:10:36]} Be6 {[%emt 0:02:04]} 10. c3 {[%emt 0:14:46]} b5 {[%emt 0:09:58]} 11. Bb3 {[%emt 0:01:00]} Bxb3 {[%emt 0:01:00]} 12. axb3 {[%emt 0:00:04]} Nf6 {[%emt 0:00:52]} 13. f3 {[%emt 0:02:23]} Kc8 {[%emt 0:02:06]} 14. Be3 {[%emt 0:08:44]} Nd7 {[%emt 0:03:18]} 15. Bd4 {[%emt 0:08:20]} Bxd4+ {[%emt 0:03:11]} 16. cxd4 {[%emt 0:00:06]} c5 {[%emt 0:06:38]} 17. d5 {[%emt 0:00:56]} Kb7 {[%emt 0:01:41]} 18. Nc3 {[%emt 0:00:52]} Rhe8 {[%emt 0:15:59]} 19. Rad1 {[%emt 0:04:18]} Nb6 {[%emt 0:04:00]} 20. Rfe1 {[%emt 0:05:31]} Rad8 {[%emt 0:04:46]} 21. f4 {[%emt 0:01:58]} Rd7 {[%emt 0:11:28]} 22. Re2 {[%emt 0:06:37]} Red8 {[%emt 0:09:46]} 23. Red2 {[%emt 0:00:30]} Nc8 24. e5 {[%emt 0:14:30]} Ne7 {[%emt 0:07:37]} 25. d6 cxd6 {[%emt 0:00:18]} 26. Ne4 {[%emt 0:00:32]} Kc6 {[%emt 0:02:21]} 27. exd6 {[%emt 0:09:48]} Nc8 {[%emt 0:00:14]} 28. Rc1 {[%emt 0:06:07]} Kb6 29. g4 {[%emt 0:00:05]} f5 {[%emt 0:01:06]} 30. gxf5 {[%emt 0:00:30]} gxf5 {[%emt 0:00:30]} 31. Nxc5 {[%emt 0:00:12]} Rxd6 {[%emt 0:01:01]} 32. Rxd6+ {[%emt 0:00:05]} Rxd6 {[%emt 0:00:29]} 33. Nxa6 {[%emt 0:02:03]} Kxa6 {[%emt 0:01:19]} 34. Rxc8 Rd1+ 35. Kf2 {[%emt 0:00:46]} Rd2+ {[%emt 0:00:18]} 36. Kg3 {[%emt 0:00:04]} Rxb2 {[%emt 0:00:18]} 37. Kh4 {[%emt 0:01:57]} Rxb3 {[%emt 0:01:26]} 38. Kg5 {[%emt 0:00:03]} Rb2 {[%emt 0:00:46]} 39. h4 {[%emt 0:00:25]} Rh2 {[%emt 0:00:23]} 40. Rc6+ Kb7 {[%emt 0:00:00]} 41. Rh6 {[%emt 0:04:38]} Kc7 {[%emt 0:01:36]} 42. Rxh7+ {[%emt 0:01:07]} Kc6 {[%emt 0:00:14]} 43. Rh8 {[%emt 0:08:05]} b4 {[%emt 0:06:26]} 44. h5 {[%emt 0:03:56]} Kc7 {[%emt 0:02:45]} 45. Re8 {[%emt 0:03:49]} b3 {[%emt 0:00:38]} 46. Re3 {[%emt 0:00:46]} b2 {[%emt 0:00:07]} 47. Rb3 {[%emt 0:00:02]} Kd6 {[%emt 0:00:50]} 48. h6 {[%emt 0:01:30]} Ke6 {[%emt 0:00:53]} 49. Rb6+ {[%emt 0:00:07]} Kf7 {[%emt 0:00:10]} 50. Rb7+ {[%emt 0:02:01]} Ke6 {[%emt 0:01:57]} 51. Rb6+ {[%emt 0:00:08]} Kf7 {[%emt 0:00:07]} 52. Rxb2 {[%emt 0:00:20]} Rh1 {[%emt 0:05:05]} 53. Rb7+ {[%emt 0:00:10]} Ke6 {[%emt 0:00:37]} 54. Rb6+ {[%emt 0:00:09]} Kf7 {[%emt 0:00:15]} 55. Rf6+ {[%emt 0:01:36]} Ke7 {[%emt 0:01:24]} 56. Kxf5 {[%emt 0:00:24]} Rh5+ {[%emt 0:00:30]} 57. Kg6 {[%emt 0:00:30]} Rxh6+ {[%emt 0:00:30]} 58. Kxh6 {[%emt 0:00:30]} Kxf6 {[%emt 0:00:30]} 59. f5 {[%emt 0:00:00]} Kxf5 1/2-1/2

[Event "35th European Club Cup 2019"]
[Site "Ulcinj"]
[Date "2019.11.14"]
[Round "5.8"]
[White "Riff, Jean-Noel"]
[Black "Jurcik, Martin"]
[Result "1/2-1/2"]
[ECO "C65"]
[WhiteElo "2514"]
[BlackElo "2358"]
[Annotator "ChessBase"]
[PlyCount "52"]
[EventDate "2019.11.10"]
[EventType "team-tourn"]
[EventCountry "MNE"]
[SourceTitle "playchess.com"]
[Source "ChessBase"]
[SourceQuality "1"]
[WhiteTeam "Mulhouse"]
[BlackTeam "Inbest Dunajov"]
[TimeControl "40/5400+30:1800+30"]

1. e4 e5 2. Nf3 Nc6 3. Bb5 Nf6 4. d3 Bc5 5. c3 O-O 6. O-O Re8 7. Re1 a6 8. Ba4 b5 9. Bb3 d6 10. Nbd2 Bb6 11. Nf1 h6 12. Ng3 Be6 13. d4 Bxb3 14. axb3 d5 15. Nxe5 Nxe5 16. dxe5 Nxe4 17. Nxe4 dxe4 18. Bf4 e3 19. fxe3 Qxd1 20. Raxd1 Red8 21. Kf2 Kf8 22. Ke2 Ke7 23. e4 Ke6 24. Rf1 a5 25. Be3 Bxe3 26. Kxe3 a4 1/2-1/2

[Event "35th European Club Cup 2019"]
[Site "Ulcinj"]
[Date "2019.11.14"]
[Round "5.9"]
[White "Van Haastert, Edwin"]
[Black "Fejzullahu, Afrim"]
[Result "1/2-1/2"]
[ECO "E97"]
[WhiteElo "2439"]
[BlackElo "2201"]
[Annotator "NA"]
[PlyCount "67"]
[EventDate "2019.11.10"]
[EventType "team-tourn"]
[EventCountry "MNE"]
[SourceTitle "playchess.com"]
[Source "ChessBase"]
[SourceQuality "1"]
[WhiteTeam "LSG IntelliMagic"]
[BlackTeam "Drejtesia"]
[TimeControl "40/5400+30:1800+30"]

1. Nf3 {[%emt 0:00:00]} Nf6 {[%emt 0:00:00]} 2. c4 {[%emt 0:00:00]} g6 {[%emt 0:00:03]} 3. Nc3 {[%emt 0:00:00]} Bg7 {[%emt 0:00:06]} 4. e4 {[%emt 0:00:00]} d6 {[%emt 0:00:06]} 5. d4 {[%emt 0:00:00]} O-O {[%emt 0:00:06]} 6. Be2 {[%emt 0:00:03]} e5 {[%emt 0:00:17]} 7. O-O {[%emt 0:00:07]} Nc6 {[%emt 0:00:03]} 8. Be3 {[%emt 0:00:16]} Ng4 {[%emt 0:02:37]} 9. Bg5 {[%emt 0:00:11]} f6 {[%emt 0:00:08]} 10. Bc1 {[%emt 0:00:15]} Nh6 {[%emt 0:04:45]} 11. dxe5 {[%emt 0:02:52]} Nxe5 {[%emt 0:15:08]} 12. Nxe5 {[%emt 0:14:52]} fxe5 {[%emt 0:00:36]} 13. c5 {[%emt 0:00:07]} Be6 {[%emt 0:08:46]} 14. cxd6 {[%emt 0:02:12]} cxd6 {[%emt 0:01:36]} 15. Be3 {[%emt 0:00:30]} Nf7 {[%emt 0:02:48]} 16. Qd2 {[%emt 0:01:23]} a6 {[%emt 0:00:58]} 17. Nd5 {[%emt 0:01:52]} Bxd5 {[%emt 0:08:07]} 18. Qxd5 {[%emt 0:00:16]} Qe7 {[%emt 0:00:55]} 19. Rac1 {[%emt 0:01:24]} Kh8 {[%emt 0:05:05]} 20. Rfd1 {[%emt 0:06:18]} Rad8 {[%emt 0:05:43]} 21. Bg4 {[%emt 0:13:04]} h5 {[%emt 0:10:42]} 22. Qe6 {[%emt 0:10:19]} Rfe8 {[%emt 0:08:43]} 23. Qxe7 {[%emt 0:00:22]} Rxe7 {[%emt 0:00:06]} 24. Be2 {[%emt 0:01:12]} Bh6 {[%emt 0:00:37]} 25. Bxh6 {[%emt 0:00:20]} Nxh6 {[%emt 0:00:08]} 26. Rc3 {[%emt 0:00:08]} Kg7 {[%emt 0:01:55]} 27. a4 {[%emt 0:00:12]} Ng8 {[%emt 0:00:21]} 28. Rb3 {[%emt 0:04:00]} Rc7 {[%emt 0:00:35]} 29. Rb4 {[%emt 0:03:39]} Ne7 {[%emt 0:03:52]} 30. h4 {[%emt 0:02:56]} Nc6 {[%emt 0:01:00]} 31. Rc4 {[%emt 0:00:24]} Rf7 {[%emt 0:01:14]} 32. g3 {[%emt 0:03:53]} Nd4 {[%emt 0:02:04]} 33. Rd2 {[%emt 0:02:22]} b5 {[%emt 0:06:12]} 34. axb5 {[%emt 0:01:08]} 1/2-1/2

[Event "35th European Club Cup 2019"]
[Site "Ulcinj"]
[Date "2019.11.14"]
[Round "5.9"]
[White "Lisko, Frantisek"]
[Black "Sokolov, Andrei"]
[Result "0-1"]
[ECO "E49"]
[WhiteElo "2274"]
[BlackElo "2497"]
[Annotator "ChessBase"]
[PlyCount "70"]
[EventDate "2019.11.10"]
[EventType "team-tourn"]
[EventCountry "MNE"]
[SourceTitle "playchess.com"]
[Source "ChessBase"]
[SourceQuality "1"]
[WhiteTeam "Inbest Dunajov"]
[BlackTeam "Mulhouse"]
[TimeControl "40/5400+30:1800+30"]

1. d4 Nf6 2. c4 e6 3. Nc3 Bb4 4. e3 O-O 5. Bd3 d5 6. a3 Bxc3+ 7. bxc3 b6 8. cxd5 Qxd5 9. Nf3 Ba6 10. Bxa6 Nxa6 11. O-O c5 12. Qa4 Qb7 13. c4 Rac8 14. Bb2 cxd4 15. exd4 Ne4 16. Rab1 Nb8 17. Rfe1 Nd7 18. d5 Ndc5 19. Qd1 Rcd8 20. Qd4 f6 21. Rxe4 Nxe4 22. Qxe4 exd5 23. cxd5 Qxd5 24. Qxd5+ Rxd5 25. Bd4 Rfd8 26. Rb4 Ra5 27. Rb3 Ra4 28. Rd3 g5 29. h3 f5 30. g4 fxg4 31. hxg4 h5 32. Re3 hxg4 33. Re5 gxf3 34. Rxg5+ Kh7 35. Bb2 Rg8 0-1

[Event "35th European Club Cup 2019"]
[Site "Ulcinj"]
[Date "2019.11.14"]
[Round "5.10"]
[White "Papadiamandis, Elliot"]
[Black "Kantorik, Marian"]
[Result "1/2-1/2"]
[ECO "C04"]
[WhiteElo "2220"]
[BlackElo "2181"]
[Annotator "NA"]
[PlyCount "73"]
[EventDate "2019.11.10"]
[EventType "team-tourn"]
[EventCountry "MNE"]
[SourceTitle "playchess.com"]
[Source "ChessBase"]
[SourceQuality "1"]
[WhiteTeam "Mulhouse"]
[BlackTeam "Inbest Dunajov"]
[TimeControl "40/5400+30:1800+30"]

1. e4 {[%emt 0:00:00]} e6 {[%emt 0:00:00]} 2. d4 {[%emt 0:00:00]} d5 {[%emt 0:00:00]} 3. Nd2 {[%emt 0:00:15]} Nc6 {[%emt 0:00:06]} 4. Ngf3 {[%emt 0:00:24]} Nf6 {[%emt 0:00:10]} 5. e5 {[%emt 0:00:46]} Nd7 {[%emt 0:00:05]} 6. c3 {[%emt 0:00:28]} f6 {[%emt 0:00:07]} 7. exf6 {[%emt 0:00:27]} Qxf6 {[%emt 0:00:10]} 8. Bb5 {[%emt 0:01:24]} Bd6 {[%emt 0:01:21]} 9. O-O {[%emt 0:01:12]} O-O {[%emt 0:00:28]} 10. Nb3 {[%emt 0:00:57]} h6 {[%emt 0:04:09]} 11. Qe2 {[%emt 0:09:45]} e5 {[%emt 0:06:53]} 12. Bxc6 bxc6 13. dxe5 {[%emt 0:03:21]} Nxe5 {[%emt 0:00:36]} 14. Nxe5 {[%emt 0:01:04]} Bxe5 {[%emt 0:00:10]} 15. Be3 {[%emt 0:05:29]} a5 {[%emt 0:02:04]} 16. Nc5 {[%emt 0:05:26]} a4 {[%emt 0:02:32]} 17. a3 {[%emt 0:04:13]} Bd6 {[%emt 0:04:55]} 18. Qh5 {[%emt 0:02:07]} Qe7 {[%emt 0:15:41]} 19. Nd3 {[%emt 0:05:28]} Ba6 {[%emt 0:00:47]} 20. Rfd1 {[%emt 0:01:32]} Bxd3 {[%emt 0:07:17]} 21. Rxd3 {[%emt 0:00:31]} Rab8 {[%emt 0:00:49]} 22. Rd2 {[%emt 0:02:54]} Qe4 {[%emt 0:09:40]} 23. h3 {[%emt 0:07:01]} Qe6 {[%emt 0:14:51]} 24. Re1 {[%emt 0:02:42]} Rbe8 {[%emt 0:03:45]} 25. Rde2 {[%emt 0:03:21]} Qf7 {[%emt 0:00:29]} 26. Qxf7+ {[%emt 0:04:46]} Kxf7 {[%emt 0:00:05]} 27. Bc1 {[%emt 0:03:56]} c5 {[%emt 0:05:27]} 28. Rxe8 {[%emt 0:01:36]} Rxe8 {[%emt 0:00:05]} 29. Rxe8 {[%emt 0:00:23]} Kxe8 {[%emt 0:00:05]} 30. Kf1 {[%emt 0:00:35]} Kd7 {[%emt 0:00:14]} 31. Ke2 {[%emt 0:02:42]} c4 {[%emt 0:05:54]} 32. f4 {[%emt 0:03:06]} h5 {[%emt 0:02:23]} 33. Kf3 {[%emt 0:03:21]} Ke6 {[%emt 0:01:02]} 34. Be3 {[%emt 0:01:43]} g6 {[%emt 0:01:41]} 35. g4 {[%emt 0:00:29]} hxg4+ {[%emt 0:00:44]} 36. Kxg4 {[%emt 0:03:50]} Be7 {[%emt 0:00:23]} 37. Bf2 {[%emt 0:01:14] Ke5} 1/2-1/2

[Event "35th European Club Cup 2019"]
[Site "Ulcinj"]
[Date "2019.11.14"]
[Round "5.10"]
[White "Zymberi, Astrit"]
[Black "De Jong, Jan-Willem"]
[Result "0-1"]
[ECO "E46"]
[WhiteElo "2148"]
[BlackElo "2446"]
[Annotator "NA"]
[PlyCount "64"]
[EventDate "2019.11.10"]
[EventType "team-tourn"]
[EventCountry "MNE"]
[SourceTitle "playchess.com"]
[Source "ChessBase"]
[SourceQuality "1"]
[WhiteTeam "Drejtesia"]
[BlackTeam "LSG IntelliMagic"]
[TimeControl "40/5400+30:1800+30"]

1. d4 {[%emt 0:00:00]} Nf6 {[%emt 0:00:00]} 2. c4 {[%emt 0:00:00]} e6 {[%emt 0:00:12]} 3. Nc3 {[%emt 0:00:06]} Bb4 {[%emt 0:00:19]} 4. e3 {[%emt 0:01:51]} O-O {[%emt 0:00:33]} 5. Nge2 {[%emt 0:00:18]} Re8 {[%emt 0:01:27]} 6. a3 {[%emt 0:00:44]} Bf8 {[%emt 0:00:07]} 7. d5 {[%emt 0:01:12]} a5 {[%emt 0:01:04]} 8. Ng3 {[%emt 0:02:05]} Na6 {[%emt 0:00:47]} 9. Be2 {[%emt 0:02:01]} Nc5 {[%emt 0:00:49]} 10. b3 {[%emt 0:01:56]} a4 {[%emt 0:05:33]} 11. bxa4 {[%emt 0:06:48]} d6 {[%emt 0:03:35]} 12. O-O {[%emt 0:04:52]} g6 {[%emt 0:16:08]} 13. Rb1 {[%emt 0:06:40]} Bg7 {[%emt 0:01:27]} 14. dxe6 {[%emt 0:18:18]} Bxe6 {[%emt 0:04:28]} 15. e4 {[%emt 0:03:45]} Bd7 {[%emt 0:04:30]} 16. f3 {[%emt 0:06:42]} Nxa4 {[%emt 0:06:07]} 17. Nxa4 {[%emt 0:01:48]} Bxa4 {[%emt 0:00:20]} 18. Qd2 {[%emt 0:04:30]} b6 {[%emt 0:01:32]} 19. Bb2 {[%emt 0:05:23]} Bc6 {[%emt 0:04:07]} 20. Bd3 {[%emt 0:07:53]} Nd7 {[%emt 0:13:24]} 21. Bxg7 {[%emt 0:03:00]} Kxg7 {[%emt 0:00:05]} 22. f4 {[%emt 0:01:40]} Qf6 {[%emt 0:04:50]} 23. e5 dxe5 {[%emt 0:01:28]} 24. f5 {[%emt 0:07:39]} Qh4 {[%emt 0:06:44]} 25. fxg6 {[%emt 0:09:12]} hxg6 {[%emt 0:05:28]} 26. c5 {[%emt 0:01:29]} Rh8 {[%emt 0:02:48]} 27. Be4 {[%emt 0:03:00]} Rxa3 {[%emt 0:05:35]} 28. Rf3 {[%emt 0:00:33]} Rxf3 {[%emt 0:04:06]} 29. gxf3 {[%emt 0:00:26]} Bxe4 {[%emt 0:00:16]} 30. Nxe4 {[%emt 0:00:32]} Nxc5 {[%emt 0:00:21]} 31. Nxc5 {[%emt 0:00:28]} bxc5 {[%emt 0:00:06]} 32. Rd1 {[%emt 0:00:10]} Qd4+ {[%emt 0:02:41]} 0-1

[Event "35th European Club Cup 2019"]
[Site "Ulcinj"]
[Date "2019.11.14"]
[Round "5.11"]
[White "Van Wissen, Michiel"]
[Black "Saraci, Korab"]
[Result "1-0"]
[ECO "C55"]
[WhiteElo "2289"]
[BlackElo "2114"]
[Annotator "NA"]
[PlyCount "89"]
[EventDate "2019.11.10"]
[EventType "team-tourn"]
[EventCountry "MNE"]
[SourceTitle "playchess.com"]
[Source "ChessBase"]
[SourceQuality "1"]
[WhiteTeam "LSG IntelliMagic"]
[BlackTeam "Drejtesia"]
[TimeControl "40/5400+30:1800+30"]

1. e4 {[%emt 0:00:00]} e5 {[%emt 0:00:00]} 2. Bc4 {[%emt 0:00:00]} Nf6 3. d3 {[%emt 0:00:00]} Nc6 {[%emt 0:02:59]} 4. Nf3 {[%emt 0:00:40]} h6 {[%emt 0:02:44]} 5. O-O {[%emt 0:02:34]} d6 {[%emt 0:00:47]} 6. c3 {[%emt 0:00:30]} Be7 7. Re1 {[%emt 0:04:58]} O-O {[%emt 0:02:50]} 8. a4 Kh8 {[%emt 0:08:08]} 9. a5 {[%emt 0:08:29]} Bg4 {[%emt 0:12:45]} 10. h3 {[%emt 0:08:57]} Bh5 {[%emt 0:07:58]} 11. a6 {[%emt 0:02:19]} b6 {[%emt 0:04:28]} 12. Nbd2 {[%emt 0:06:43]} Nb8 {[%emt 0:11:44]} 13. Nf1 {[%emt 0:08:05]} c6 {[%emt 0:03:05]} 14. Ng3 {[%emt 0:01:37]} Bg6 {[%emt 0:02:16]} 15. Nh4 {[%emt 0:07:35]} Bh7 {[%emt 0:10:47]} 16. Nhf5 {[%emt 0:02:48]} Qd7 {[%emt 0:01:32]} 17. Nxe7 Qxe7 {[%emt 0:00:14]} 18. Qf3 {[%emt 0:08:36]} Nbd7 {[%emt 0:02:16]} 19. Nf5 {[%emt 0:08:12]} Bxf5 {[%emt 0:00:56]} 20. Qxf5 {[%emt 0:00:14]} Rfd8 {[%emt 0:07:25]} 21. Bb3 {[%emt 0:07:47]} Nf8 {[%emt 0:01:11]} 22. Bd2 {[%emt 0:09:00]} Ng6 {[%emt 0:01:32]} 23. g3 {[%emt 0:00:45]} Qd7 {[%emt 0:03:13]} 24. Qxd7 {[%emt 0:02:32]} Rxd7 {[%emt 0:00:56]} 25. d4 {[%emt 0:02:03]} Re8 {[%emt 0:01:26]} 26. d5 {[%emt 0:02:25]} Ne7 27. dxc6 {[%emt 0:01:09]} Nxc6 {[%emt 0:02:52]} 28. Ba4 {[%emt 0:00:52]} Rc7 {[%emt 0:00:28]} 29. Bb5 {[%emt 0:01:31]} Rd8 {[%emt 0:00:34]} 30. Bf1 {[%emt 0:01:18]} Na5 {[%emt 0:02:46]} 31. Rad1 {[%emt 0:01:35]} Nb3 {[%emt 0:00:55]} 32. Be3 {[%emt 0:00:13]} Na5 {[%emt 0:02:30]} 33. f3 {[%emt 0:00:45]} Ng8 {[%emt 0:01:41]} 34. Bg2 {[%emt 0:01:08]} Rcd7 {[%emt 0:01:06]} 35. f4 {[%emt 0:00:11]} f6 {[%emt 0:00:18]} 36. Rd3 {[%emt 0:00:43]} Ne7 {[%emt 0:01:17]} 37. Red1 {[%emt 0:00:09]} Nb3 {[%emt 0:01:05]} 38. h4 {[%emt 0:00:19]} Nc6 {[%emt 0:00:37]} 39. Bh3 {[%emt 0:00:20]} Rc7 {[%emt 0:01:26]} 40. Rxd6 {[%emt 0:00:00]} Rxd6 {[%emt 0:00:00]} 41. Rxd6 {[%emt 0:00:16]} Nca5 {[%emt 0:06:48]} 42. Be6 {[%emt 0:09:12]} Kh7 {[%emt 0:01:14]} 43. Rd8 {[%emt 0:04:00]} Re7 {[%emt 0:07:20]} 44. f5 {[%emt 0:06:05]} g6 {[%emt 0:00:46]} 45. Bxb6 {[%emt 0:04:55]} 1-0